fUSD/lending_fUSD_20260324
["ID","MTS","AMOUNT","RATE_DAILY","PERIOD"]
[408876663,1774377040974,-500.0,0.00015999,2]
[408876664,1774377040983,-500.0,0.00015999,2]
[408876665,1774377040992,-500.0,0.00015999,2]
[408876666,1774377041001,-500.0,0.00015999,2]
[408876667,1774377041010,-500.0,0.00015999,2]
[408876668,1774377041019,-500.0,0.00015999,2]
[408876669,1774377041028,-1233.0,0.00016,5]
[408876670,1774377041037,-1690.0,0.00016,5]
[408876671,1774377041045,-1522.0,0.00016,2]
[408876672,1774377041055,-1522.0,0.00016,2]
[408876673,1774377041063,-160.0,0.00016,2]
[408876674,1774377041072,-151.0,0.00016,2]
[408876675,1774377041086,-160.0,0.00016,2]
[408876676,1774377041095,-1522.0,0.00016,2]
[408876677,1774377041105,-151.0,0.00016,2]
[408876678,1774377041114,-165.57271039,0.00016,2]
[408876679,1774377041124,-1522.0,0.00016,2]
[408876680,1774377041133,-151.0,0.00016,2]
[408876681,1774377041142,-1522.0,0.00016,2]
[408876682,1774377041151,-151.0,0.00016,2]
[408876683,1774377041162,-1522.0,0.00016,2]
[408876684,1774377041171,-159.18892356,0.00016,2]
[408876685,1774377041180,-1522.0,0.00016,2]
[408876686,1774377041191,-1522.0,0.00016,2]
[408876687,1774377041200,-1522.0,0.00016,2]
[408876688,1774377041209,-1522.0,0.00016,2]
[408876689,1774377041218,-1522.0,0.00016,2]
[408876690,1774377041227,-430.788209,0.00016,2]
[408876691,1774377041236,-3456217.36764524,0.00016,2]
[408876692,1774377041245,-403696.19583334,0.00016,2]
[408876693,1774377041707,-568.81426449,0.00016,2]
[408876694,1774377042128,-716.49020845,0.00015996,2]
[408876695,1774377042206,-2798.50979155,0.00015996,2]
[408876696,1774377042215,-27201.42191345,0.00016,2]
[408876697,1774377042226,-682.29804631,0.00016,2]
[408876698,1774377042237,-582.32899,0.00016,2]
[408876699,1774377042325,-1561100.19333956,0.00016,2]
[408876712,1774377043380,-993.80145634,0.000159,2]
[408876723,1774377046384,-696.15,0.000159,2]
[408876724,1774377046495,-23900.22289875,0.000159,2]
[408876725,1774377046504,-419775.60149351,0.00016,2]
[408876738,1774377091837,535.0,0.00014,2]
[408876739,1774377099647,348.92330359,0.0001,2]
[408876742,1774377211609,4116.08669641,0.000142,2]
[408876743,1774377211631,4991.79664918,0.000142,2]
[408876745,1774377238339,33210.0,0.00017,60]
[408876749,1774377359149,2000.0,0.00014362,2]
[408876750,1774377389148,250.0,0.00013,2]
[408876751,1774377446335,1178.486041,0.00014445,2]
[408876752,1774377530957,621.07,0.00014103,2]
[408876754,1774377659298,1069.94,0.00013998,2]
[408876755,1774377692159,150.0,0.00013987,2]
[408876756,1774377718646,3687.95,0.00013992,2]
[408876757,1774377799514,92.12,0.00013878,2]
[408876758,1774377799536,3147.88,0.00013878,2]
[408876759,1774378042668,889.68,0.0001397,2]
[408876760,1774378126580,200.0,0.00013867,2]
[408876761,1774378153739,762.45,0.00013876,2]
[408876762,1774378153761,858.57,0.00013876,2]
[408876770,1774378231345,-5563.34642139,0.0001459,2]
[408876771,1774378231354,-300.0,0.00014599,2]
[408876772,1774378231364,-1200.0,0.00014599,2]
[408876773,1774378231373,-2236.41214356,0.000146,2]
[408876774,1774378231383,-4948.17666406,0.000146,2]
[408876775,1774378231397,-200.0,0.000146,5]
[408876776,1774378231407,-250.0,0.0001464,2]
[408876777,1774378231416,-889.68,0.00014668,2]
[408876778,1774378231427,-151.47432921,0.0001468,2]
[408876779,1774378231437,-300.0,0.00014688,2]
[408876780,1774378231446,-150.0,0.00014689,2]
[408876781,1774378231455,-5100.0,0.0001469,2]
[408876782,1774378231466,-5000.0,0.0001469,2]
[408876783,1774378231476,-319873.53213081,0.0001469,2]
[408876784,1774378231492,-143668.55885712,0.0001469,2]
[408876785,1774378231503,-42615.01589585,0.0001469,2]
[408876786,1774378231514,-1058.89640059,0.0001469,2]
[408876789,1774378231534,-1088.42714169,0.0001469,2]
[408876791,1774378231545,-318.75595281,0.0001469,2]
[408876794,1774378231556,-2517.01251569,0.0001469,2]
[408876796,1774378231567,-4789.75444283,0.0001469,2]
[408876798,1774378231578,-946.4836003,0.0001469,2]
[408876803,1774378237483,-1343.82,0.0001469,2]
[408876804,1774378237494,-3971.51414421,0.0001469,2]
[408876805,1774378237594,-977808.2289181,0.0001469,2]
[408876806,1774378237603,-2500.0,0.0001469,2]
[408876807,1774378237612,-6762.1846,0.0001469,2]
[408876808,1774378237621,-400.0,0.000147,5]
[408876809,1774378237630,-150.0,0.000147,2]
[408876810,1774378237639,-2236.41214355,0.00014744,2]
[408876811,1774378237649,-4948.17666405,0.00014744,2]
[408876812,1774378237659,-504.67871963,0.00014773,2]
[408876813,1774378237670,-500.0,0.00014773,2]
[408876814,1774378237679,-500.0,0.00014773,2]
[408876815,1774378237689,-501.38646377,0.00014773,2]
[408876816,1774378237699,-500.0,0.00014773,2]
[408876817,1774378237709,-500.0,0.00014773,2]
[408876818,1774378237720,-500.0,0.00014773,2]
[408876819,1774378237731,-500.0,0.00014773,2]
[408876820,1774378237739,-218.71564775,0.00014773,2]
[408876821,1774378237748,-169.39313664,0.00014773,2]
[408876822,1774378237757,-500.0,0.00014773,2]
[408876823,1774378237766,-500.0,0.00014773,2]
[408876824,1774378237775,-448.24083087,0.00014773,2]
[408876825,1774378237784,-500.25065648,0.00014773,2]
[408876826,1774378237793,-500.0,0.00014773,2]
[408876827,1774378237802,-500.0,0.00014773,2]
[408876829,1774378237811,-500.0,0.00014773,2]
[408876831,1774378237820,-500.0,0.00014773,2]
[408876833,1774378237829,-241.03734395,0.00014773,2]
[408876835,1774378237838,-200.0,0.00014776,2]
[408876837,1774378237848,-248.25,0.00014789,2]
[408876839,1774378237856,-196.083,0.00014789,2]
[408876840,1774378237865,-3372.514,0.00014789,2]
[408876842,1774378237874,-500.0,0.00014789,2]
[408876844,1774378237883,-500.0,0.00014789,2]
[408876846,1774378237892,-500.0,0.00014789,2]
[408876848,1774378237902,-500.0,0.00014789,2]
[408876850,1774378237911,-500.0,0.00014789,2]
[408876852,1774378237920,-500.0,0.00014789,2]
[408876855,1774378237930,-500.0,0.00014789,2]
[408876857,1774378237939,-500.0,0.00014789,2]
[408876858,1774378237948,-500.0,0.00014789,2]
[408876860,1774378237957,-500.0,0.00014789,2]
[408876862,1774378237966,-500.0,0.00014789,2]
[408876864,1774378237975,-500.0,0.00014789,2]
[408876866,1774378237984,-500.0,0.00014789,2]
[408876869,1774378237993,-500.0,0.00014789,2]
[408876870,1774378238002,-500.0,0.00014789,2]
[408876872,1774378238012,-500.0,0.00014789,2]
[408876875,1774378238021,-551.44,0.00014789,2]
[408876876,1774378238031,-551.44,0.00014789,2]
[408876878,1774378238040,-551.44,0.00014789,2]
[408876880,1774378238049,-500.0,0.00014789,2]
[408876883,1774378238059,-503.29550484,0.00014789,2]
[408876884,1774378238068,-500.0,0.00014789,2]
[408876886,1774378238078,-500.0,0.00014789,2]
[408876888,1774378238087,-500.0,0.00014789,2]
[408876890,1774378238096,-500.0,0.00014789,2]
[408876892,1774378238105,-500.0,0.00014789,2]
[408876894,1774378238114,-500.0,0.00014789,2]
[408876896,1774378238122,-500.0,0.00014789,2]
[408876898,1774378238131,-500.0,0.00014789,2]
[408876900,1774378238140,-500.0,0.00014789,2]
[408876902,1774378238149,-500.0,0.00014789,2]
[408876905,1774378238159,-500.0,0.00014789,2]
[408876906,1774378238168,-446.54617211,0.00014789,2]
[408876908,1774378238177,-500.0,0.00014789,2]
[408876910,1774378238186,-500.0,0.00014789,2]
[408876912,1774378238195,-500.0,0.00014789,2]
[408876914,1774378238204,-500.0,0.00014789,2]
[408876916,1774378238213,-500.0,0.00014789,2]
[408876919,1774378238223,-500.0,0.00014789,2]
[408876921,1774378238232,-500.0,0.00014789,2]
[408876923,1774378238241,-500.0,0.00014789,2]
[408876925,1774378238250,-889291.1791,0.0001479,2]
[408876927,1774378238259,-394.38334245,0.000148,2]
[408876929,1774378238269,-600.0,0.000148,5]
[408876931,1774378238279,-995.16,0.000148,2]
[408876933,1774378238288,-154.29462543,0.00014815,2]
[408876935,1774378238297,-948.11,0.00014817,2]
[408876937,1774378238307,-205.04781644,0.00014867,2]
[408876939,1774378238316,-500.0,0.00014873,2]
[408876940,1774378238325,-500.0,0.00014873,2]
[408876943,1774378238334,-500.0,0.00014873,2]
[408876945,1774378238343,-500.0,0.00014873,2]
[408876947,1774378238352,-500.0,0.00014873,2]
[408876949,1774378238361,-500.0,0.00014873,2]
[408876951,1774378238369,-2236.41214355,0.00014889,2]
[408876953,1774378238378,-4948.17666405,0.00014889,2]
[408876955,1774378238388,-500.0,0.00014889,2]
[408876956,1774378238401,-500.0,0.00014889,2]
[408876958,1774378238410,-500.0,0.00014889,2]
[408876960,1774378238419,-500.0,0.00014889,2]
[408876962,1774378238428,-500.0,0.00014889,2]
[408876964,1774378238438,-500.0,0.00014889,2]
[408876966,1774378238447,-500.0,0.00014889,2]
[408876968,1774378238455,-500.0,0.00014889,2]
[408876970,1774378238468,-500.0,0.00014889,2]
[408876972,1774378238477,-500.0,0.00014889,2]
[408876974,1774378238487,-500.0,0.00014889,2]
[408876976,1774378238496,-519.40496826,0.00014889,2]
[408876978,1774378238505,-500.0,0.00014889,2]
[408876980,1774378238514,-500.0,0.00014889,2]
[408876982,1774378238523,-500.0,0.00014889,2]
[408876984,1774378238532,-293.37404714,0.00014889,2]
[408876986,1774378238541,-551.44,0.00014889,2]
[408876988,1774378238550,-551.44,0.00014889,2]
[408876990,1774378238559,-551.44,0.00014889,2]
[408876992,1774378238568,-551.44,0.00014889,2]
[408876994,1774378238576,-500.0,0.00014889,2]
[408876996,1774378238587,-500.0,0.00014889,2]
[408876998,1774378238596,-500.0,0.00014889,2]
[408877000,1774378238606,-500.0,0.00014889,2]
[408877002,1774378238615,-577.23076575,0.00014889,2]
[408877004,1774378238624,-500.0,0.00014889,2]
[408877006,1774378238633,-500.0,0.00014889,2]
[408877008,1774378238642,-452.32053843,0.00014889,2]
[408877010,1774378238650,-202.55325191,0.00014889,2]
[408877012,1774378238659,-500.0,0.00014889,2]
[408877014,1774378238669,-500.0,0.00014889,2]
[408877016,1774378238677,-500.0,0.00014889,2]
[408877018,1774378238686,-381.74922838,0.00014889,2]
[408877020,1774378238695,-500.0,0.00014889,2]
[408877022,1774378238703,-500.0,0.00014889,2]
[408877024,1774378238712,-500.0,0.00014889,2]
[408877026,1774378238721,-500.0,0.00014889,2]
[408877028,1774378238730,-500.0,0.00014889,2]
[408877030,1774378238739,-500.0,0.00014889,2]
[408877032,1774378238748,-800.0,0.000149,5]
[408877034,1774378238757,-394.3833424,0.00014983,2]
[408877036,1774378238766,-300.0,0.00015,2]
[408877038,1774378238776,-2236.41214355,0.00015033,2]
[408877040,1774378238785,-4948.17666405,0.00015033,2]
[408877042,1774378238794,-735.0,0.00015054,2]
[408877044,1774378238803,-390.0,0.0001506,2]
[408877046,1774378238812,-248.25,0.00015063,2]
[408877048,1774378238821,-394.3833424,0.00015167,2]
[408877050,1774378238830,-2236.41214355,0.00015178,2]
[408877052,1774378238839,-4948.17666405,0.00015178,2]
[408877054,1774378238848,-151.51747593,0.00015199,2]
[408877056,1774378238857,-500.0,0.00015199,2]
[408877058,1774378238866,-9552.16786547,0.00015199,2]
[408877060,1774378238875,-151.0,0.00015199,2]
[408877062,1774378238885,-262.90206542,0.00015199,2]
[408877064,1774378238893,-250.72299322,0.000152,2]
[408877066,1774378238902,-150.0,0.000152,2]
[408877068,1774378238911,-213.01,0.00015204,2]
[408877070,1774378238920,-350.0,0.00015254,2]
[408877072,1774378238929,-500.0,0.00015254,2]
[408877074,1774378238938,-9905.5980765,0.00015254,2]
[408877076,1774378238947,-151.0,0.00015254,2]
[408877078,1774378238956,-292.44410762,0.00015254,2]
[408877080,1774378238965,-150.0,0.00015263,2]
[408877082,1774378238974,-228.9,0.000153,2]
[408877084,1774378238982,-500.0,0.00015309,2]
[408877086,1774378238992,-10272.10520533,0.00015309,2]
[408877088,1774378239001,-151.0,0.00015309,2]
[408877090,1774378239011,-150.0,0.00015314,2]
[408877092,1774378239020,-1000.0,0.00015321,2]
[408877094,1774378239029,-1000.0,0.00015321,2]
[408877096,1774378239038,-1000.0,0.00015321,2]
[408877098,1774378239048,-1000.0,0.00015321,2]
[408877100,1774378239058,-500.0,0.00015321,2]
[408877102,1774378239067,-1000.63263987,0.00015321,2]
[408877104,1774378239076,-1000.0,0.00015321,2]
[408877106,1774378239085,-504.00492722,0.00015321,2]
[408877108,1774378239095,-500.45556563,0.00015321,2]
[408877110,1774378239104,-500.0,0.00015321,2]
[408877112,1774378239113,-1000.0,0.00015321,2]
[408877114,1774378239122,-2236.41214355,0.00015322,2]
[408877116,1774378239132,-4948.17666405,0.00015322,2]
[408877118,1774378239141,-248.25,0.00015337,2]
[408877120,1774378239149,-394.3833424,0.0001535,2]
[408877122,1774378239158,-500.0,0.00015364,2]
[408877124,1774378239167,-10652.17309792,0.00015364,2]
[408877126,1774378239176,-151.0,0.00015364,2]
[408877128,1774378239185,-889.68,0.00015366,2]
[408877130,1774378239196,-205.04781643,0.00015384,2]
[408877132,1774378239205,-395.89,0.00015396,2]
[408877134,1774378239214,-1000.0,0.000154,5]
[408877136,1774378239224,-500.0,0.00015419,2]
[408877138,1774378239233,-11046.30350255,0.00015419,2]
[408877141,1774378239242,-151.0,0.00015419,2]
[408877143,1774378239251,-1095.60131415,0.00015421,2]
[408877145,1774378239260,-1002.25886196,0.00015421,2]
[408877147,1774378239270,-1000.0,0.00015421,2]
[408877149,1774378239279,-1000.0,0.00015421,2]
[408877151,1774378239288,-1000.0,0.00015421,2]
[408877153,1774378239298,-1000.0,0.00015421,2]
[408877155,1774378239308,-2236.41214355,0.00015467,2]
[408877157,1774378239317,-4948.17666405,0.00015467,2]
[408877160,1774378239326,-1902.84886667,0.00015474,2]
[408877162,1774378239335,-168.0,0.0001548,2]
[408877165,1774378239345,-200.0,0.000155,5]
[408877166,1774378239354,-4000.0,0.00015507,2]
[408877168,1774378239363,-394.3833424,0.00015533,2]
[408877170,1774378239372,-32984.9071,0.00015554,2]
[408877172,1774378239381,-150.0,0.00015568,2]
[408877174,1774378239392,-168.0,0.0001559,2]
[408877176,1774378239402,-200.0,0.000156,5]
[408877178,1774378239411,-248.25,0.00015611,2]
[408877180,1774378239420,-2236.41214355,0.00015611,2]
[408877182,1774378239431,-4948.17666405,0.00015611,2]
[408877184,1774378239440,-150.0,0.0001562,2]
[408877186,1774378239449,-500.0,0.00015628,2]
[408877188,1774378239458,-500.0,0.00015628,2]
[408877190,1774378239467,-508.75121093,0.00015628,2]
[408877192,1774378239477,-500.0,0.00015628,2]
[408877194,1774378239486,-500.0,0.00015628,2]
[408877196,1774378239495,-500.0,0.00015628,2]
[408877198,1774378239504,-500.0,0.00015628,2]
[408877200,1774378239513,-245.741883,0.00015649,7]
[408877202,1774378239523,-150.0,0.00015655,2]
[408877204,1774378239532,-272.511347,0.00015679,7]
[408877206,1774378239541,-244.535476,0.0001568,7]
[408877208,1774378239550,-500.0,0.00015698,2]
[408877210,1774378239559,-500.0,0.00015698,2]
[408877212,1774378239568,-500.0,0.00015698,2]
[408877214,1774378239576,-500.0,0.00015698,2]
[408877216,1774378239585,-540.81,0.00015698,2]
[408877218,1774378239594,-500.0,0.00015699,2]
[408877220,1774378239603,-500.0,0.00015699,2]
[408877222,1774378239612,-592.87556982,0.00015699,2]
[408877224,1774378239621,-500.0,0.00015699,2]
[408877226,1774378239630,-500.0,0.00015699,2]
[408877228,1774378239638,-500.0,0.00015699,2]
[408877230,1774378239647,-2000.0,0.000157,2]
[408877232,1774378239656,-200.0,0.000157,5]
[408877234,1774378239665,-394.3833424,0.00015717,2]
[408877236,1774378239674,-1069.94,0.00015747,2]
[408877238,1774378239683,-2236.41214355,0.00015756,2]
[408877240,1774378239692,-4948.17666405,0.00015756,2]
[408877242,1774378239701,-500.0,0.00015788,2]
[408877244,1774378239710,-500.0,0.00015788,2]
[408877246,1774378239720,-500.0,0.00015788,2]
[408877248,1774378239729,-150.0,0.00015788,2]
[408877250,1774378239738,-500.0,0.00015788,2]
[408877252,1774378239747,-540.81,0.00015788,2]
[408877254,1774378239756,-150.0,0.0001579,2]
[408877256,1774378239765,-200.0,0.000158,5]
[408877257,1774378239775,-500.0,0.00015808,2]
[408877259,1774378239783,-500.0,0.00015808,2]
[408877261,1774378239793,-551.44,0.00015808,2]
[408877263,1774378239802,-500.0,0.00015808,2]
[408877265,1774378239811,-500.0,0.00015809,2]
[408877267,1774378239821,-500.0,0.00015809,2]
[408877269,1774378239830,-500.0,0.00015809,2]
[408877271,1774378239840,-500.0,0.00015809,2]
[408877273,1774378239849,-500.0,0.00015809,2]
[408877276,1774378239858,-255.0,0.0001582,2]
[408877278,1774378239867,-299.4646,0.0001584,2]
[408877279,1774378239876,-299.46461,0.0001584,2]
[408877281,1774378239885,-250.0,0.00015848,2]
[408877283,1774378239894,-299.46461,0.0001585,2]
[408877286,1774378239903,-1008.47953738,0.00015868,2]
[408877288,1774378239913,-500.0,0.00015868,2]
[408877289,1774378239922,-1500.0,0.00015868,2]
[408877291,1774378239931,-1500.0,0.00015868,2]
[408877293,1774378239941,-1500.0,0.00015868,2]
[408877295,1774378239950,-197.81018147,0.00015868,2]
[408877297,1774378239959,-248.29,0.00015885,2]
[408877299,1774378239968,-4000.0,0.00015895,2]
[408877301,1774378239977,-500.0,0.00015899,2]
[408877303,1774378239986,-500.0,0.00015899,2]
[408877305,1774378239995,-500.0,0.00015899,2]
[408877307,1774378240004,-500.0,0.00015899,2]
[408877309,1774378240013,-500.0,0.00015899,2]
[408877311,1774378240022,-500.0,0.00015899,2]
[408877312,1774378240031,-500.0,0.00015899,2]
[408877313,1774378240040,-500.0,0.00015899,2]
[408877314,1774378240049,-500.0,0.00015899,2]
[408877315,1774378240059,-540.81,0.00015899,2]
[408877316,1774378240068,-277.91587199,0.00015899,2]
[408877317,1774378240077,-277.91587198,0.000159,2]
[408877318,1774378240086,-394.3833424,0.000159,2]
[408877319,1774378240095,-10000.0,0.000159,2]
[408877320,1774378240104,-205.04781643,0.000159,2]
[408877321,1774378240113,-300.0,0.000159,5]
[408877322,1774378240122,-2236.41214355,0.000159,2]
[408877323,1774378240131,-4948.17666405,0.000159,2]
[408877324,1774378240140,-197.1603,0.000159,2]
[408877325,1774378240149,-277.91587198,0.000159,2]
[408877326,1774378240158,-1576.0,0.000159,5]
[408877327,1774378240167,-656.18,0.00015905,2]
[408877328,1774378240177,-160.0,0.00015914,2]
[408877330,1774378240186,-160.0,0.00015914,2]
[408877332,1774378240194,-979.16666667,0.00015914,2]
[408877333,1774378240203,-700.0,0.00015942,4]
[408877335,1774378240213,-1500.0,0.00015968,2]
[408877337,1774378240222,-1500.0,0.00015968,2]
[408877339,1774378240231,-1500.0,0.00015968,2]
[408877341,1774378240240,-1259.99072283,0.00015968,2]
[408877344,1774378240249,-500.0,0.00015973,2]
[408877346,1774378240259,-500.0,0.00015973,2]
[408877353,1774378240268,-500.0,0.00015973,2]
[408877354,1774378240489,-500.0,0.00015973,2]
[408877355,1774378240497,-500.21901505,0.00015973,2]
[408877356,1774378240507,-500.0,0.00015973,2]
[408877357,1774378240516,-500.0,0.00015973,2]
[408877358,1774378240526,-500.0,0.00015973,2]
[408877359,1774378240535,-500.0,0.00015973,2]
[408877360,1774378240544,-500.0,0.00015973,2]
[408877361,1774378240553,-500.0,0.00015973,2]
[408877362,1774378240562,-500.0,0.00015973,2]
[408877363,1774378240571,-500.0,0.00015973,2]
[408877364,1774378240580,-500.0,0.00015973,2]
[408877365,1774378240589,-207.0,0.00015984,2]
[408877366,1774378240598,-151.47432921,0.0001599,2]
[408877367,1774378240606,-1345.0,0.00015996,2]
[408877368,1774378240615,-621.0,0.00015996,2]
[408877369,1774378240624,-1045.0,0.00015996,2]
[408877370,1774378240633,-3515.0,0.00015996,2]
[408877371,1774378240643,-1262.0,0.00015996,2]
[408877372,1774378240654,-150.0,0.00015996,2]
[408877373,1774378240665,-924.0,0.00015996,2]
[408877374,1774378240676,-2467.0,0.00015996,2]
[408877375,1774378240685,-3762.0,0.00015996,2]
[408877376,1774378240694,-151.0,0.00015997,2]
[408877377,1774378240704,-500.0,0.00015998,2]
[408877378,1774378240715,-500.0,0.00015998,2]
[408877379,1774378240726,-500.0,0.00015998,2]
[408877380,1774378240735,-500.0,0.00015998,2]
[408877381,1774378240744,-500.0,0.00015998,2]
[408877382,1774378240752,-500.0,0.00015999,2]
[408877383,1774378240761,-500.0,0.00015999,2]
[408877384,1774378240771,-500.0,0.00015999,2]
[408877385,1774378240780,-500.0,0.00015999,2]
[408877386,1774378240789,-500.0,0.00015999,2]
[408877387,1774378240798,-500.0,0.00015999,2]
[408877388,1774378240807,-500.0,0.00015999,2]
[408877389,1774378240817,-500.0,0.00015999,2]
[408877390,1774378240826,-500.0,0.00015999,2]
[408877391,1774378240834,-500.0,0.00015999,2]
[408877392,1774378240843,-500.0,0.00015999,2]
[408877393,1774378240852,-616.72336867,0.00015999,2]
[408877394,1774378240861,-500.0,0.00015999,2]
[408877395,1774378240870,-500.0,0.00015999,2]
[408877396,1774378240880,-500.0,0.00015999,2]
[408877397,1774378240889,-180.31740041,0.00015999,2]
[408877398,1774378240898,-500.0,0.00015999,2]
[408877399,1774378240907,-507.02157658,0.00015999,2]
[408877400,1774378240918,-500.0,0.00015999,2]
[408877401,1774378240927,-500.0,0.00015999,2]
[408877402,1774378240937,-500.0,0.00015999,2]
[408877403,1774378240946,-500.0,0.00015999,2]
[408877404,1774378240955,-500.0,0.00015999,2]
[408877405,1774378240964,-631.81161049,0.00015999,2]
[408877406,1774378240973,-500.0,0.00015999,2]
[408877407,1774378240983,-500.0,0.00015999,2]
[408877408,1774378240992,-500.0,0.00015999,2]
[408877409,1774378241001,-500.0,0.00015999,2]
[408877410,1774378241010,-240.16411222,0.00015999,2]
[408877411,1774378241020,-207.8534478,0.00015999,2]
[408877412,1774378241029,-500.0,0.00015999,2]
[408877413,1774378241039,-500.0,0.00015999,2]
[408877414,1774378241048,-500.0,0.00015999,2]
[408877415,1774378241058,-500.0,0.00015999,2]
[408877416,1774378241067,-500.0,0.00015999,2]
[408877417,1774378241077,-500.0,0.00015999,2]
[408877418,1774378241086,-500.0,0.00015999,2]
[408877419,1774378241095,-500.0,0.00015999,2]
[408877420,1774378241104,-500.0,0.00015999,2]
[408877421,1774378241114,-623.11598405,0.00015999,2]
[408877422,1774378241123,-513.0801442,0.00015999,2]
[408877423,1774378241132,-500.0,0.00015999,2]
[408877424,1774378241141,-500.0,0.00015999,2]
[408877425,1774378241151,-500.0,0.00015999,2]
[408877426,1774378241160,-500.0,0.00015999,2]
[408877427,1774378241169,-500.0,0.00015999,2]
[408877428,1774378241178,-500.0,0.00015999,2]
[408877429,1774378241187,-500.0,0.00015999,2]
[408877430,1774378241197,-500.0,0.00015999,2]
[408877431,1774378241206,-500.0,0.00015999,2]
[408877432,1774378241215,-500.0,0.00015999,2]
[408877433,1774378241224,-500.0,0.00015999,2]
[408877434,1774378241233,-500.0,0.00015999,2]
[408877435,1774378241242,-500.0,0.00015999,2]
[408877436,1774378241251,-500.0,0.00015999,2]
[408877437,1774378241260,-500.0,0.00015999,2]
[408877438,1774378241271,-408.43146087,0.00015999,2]
[408877439,1774378241280,-540.81,0.00015999,2]
[408877440,1774378241290,-540.81,0.00015999,2]
[408877441,1774378241298,-540.81,0.00015999,2]
[408877442,1774378241307,-540.81,0.00015999,2]
[408877443,1774378241316,-540.81,0.00015999,2]
[408877444,1774378241326,-540.81,0.00015999,2]
[408877445,1774378241335,-540.81,0.00015999,2]
[408877446,1774378241344,-540.81,0.00015999,2]
[408877447,1774378241353,-540.81,0.00015999,2]
[408877448,1774378241362,-540.81,0.00015999,2]
[408877449,1774378241372,-540.81,0.00015999,2]
[408877450,1774378241381,-540.81,0.00015999,2]
[408877451,1774378241390,-540.81,0.00015999,2]
[408877452,1774378241403,-540.81,0.00015999,2]
[408877453,1774378241415,-540.81,0.00015999,2]
[408877454,1774378241424,-540.81,0.00015999,2]
[408877455,1774378241437,-540.81,0.00015999,2]
[408877456,1774378241446,-540.81,0.00015999,2]
[408877457,1774378241455,-540.81,0.00015999,2]
[408877458,1774378241464,-540.81,0.00015999,2]
[408877459,1774378241475,-540.9972541,0.00015999,2]
[408877460,1774378241485,-500.0,0.00015999,2]
[408877461,1774378241494,-500.0,0.00015999,2]
[408877462,1774378241503,-500.0,0.00015999,2]
[408877463,1774378241512,-500.0,0.00015999,2]
[408877464,1774378241522,-500.0,0.00015999,2]
[408877465,1774378241531,-391.0509546,0.00015999,2]
[408877466,1774378241540,-551.44,0.00015999,2]
[408877467,1774378241549,-551.44,0.00015999,2]
[408877468,1774378241559,-551.44,0.00015999,2]
[408877469,1774378241568,-551.44,0.00015999,2]
[408877470,1774378241577,-551.44,0.00015999,2]
[408877471,1774378241586,-551.44,0.00015999,2]
[408877472,1774378241595,-551.44,0.00015999,2]
[408877473,1774378241604,-551.44,0.00015999,2]
[408877474,1774378241613,-551.44,0.00015999,2]
[408877475,1774378241622,-551.44,0.00015999,2]
[408877476,1774378241631,-551.44,0.00015999,2]
[408877477,1774378241640,-551.44,0.00015999,2]
[408877478,1774378241650,-551.44,0.00015999,2]